[Event "*** Titled Tuesday Blitz"]
[Site "Chess.com"]
[Date "2020.10.27"]
[Round "10"]
[White "TotsukaBlade"]
[Black "Samantha_Ross"]
[Result "0-1"]
[WhiteElo "2410"]
[BlackElo "2313"]
[TimeControl "180+1"]
[EndTime "11:57:53 PDT"]
[Termination "Samantha_Ross won by checkmate"]

1. e4 {[%clk 0:03:00.9]} 1... c5 {[%clk 0:02:59.8]} 2. Nf3 {[%clk 0:02:56]} 2...
d6 {[%clk 0:03:00.2]} 3. Bb5+ {[%clk 0:02:53.3]} 3... Bd7 {[%clk 0:03:00.1]} 4.
c4 {[%clk 0:02:52.5]} 4... Nf6 {[%clk 0:02:54.9]} 5. Nc3 {[%clk 0:02:51.7]} 5...
Nc6 {[%clk 0:02:45.5]} 6. O-O {[%clk 0:02:51.3]} 6... g6 {[%clk 0:02:43]} 7. d4
{[%clk 0:02:50.5]} 7... cxd4 {[%clk 0:02:42.1]} 8. Nxd4 {[%clk 0:02:51.4]} 8...
Bg7 {[%clk 0:02:41.5]} 9. Be3 {[%clk 0:02:48.4]} 9... Ng4 {[%clk 0:02:36.4]} 10.
Nxc6 {[%clk 0:02:41.1]} 10... bxc6 {[%clk 0:02:33.4]} 11. Bxc6 {[%clk 0:02:25]}
11... Nxe3 {[%clk 0:02:31.8]} 12. Bxd7+ {[%clk 0:02:24.9]} 12... Qxd7 {[%clk
0:02:29.1]} 13. fxe3 {[%clk 0:02:25]} 13... O-O {[%clk 0:02:09.5]} 14. Qd3
{[%clk 0:02:18.8]} 14... Rfc8 {[%clk 0:01:57.6]} 15. Rac1 {[%clk 0:01:51.2]}
15... Rab8 {[%clk 0:01:52]} 16. Rc2 {[%clk 0:01:45.6]} 16... Rc5 {[%clk
0:01:46.4]} 17. b3 {[%clk 0:01:40.8]} 17... Rh5 {[%clk 0:01:43.4]} 18. Rcf2
{[%clk 0:01:32.7]} 18... Rf8 {[%clk 0:01:41.6]} 19. Nd5 {[%clk 0:01:30.6]} 19...
Re5 {[%clk 0:01:32.8]} 20. c5 {[%clk 0:01:23.1]} 20... e6 {[%clk 0:01:21.9]} 21.
c6 {[%clk 0:01:01.5]} 21... Qd8 {[%clk 0:01:20.6]} 22. Nf6+ {[%clk 0:00:53]}
22... Bxf6 {[%clk 0:01:18.6]} 23. Rxf6 {[%clk 0:00:53.4]} 23... Rc5 {[%clk
0:01:19]} 24. Qa6 {[%clk 0:00:39.4]} 24... Qc7 {[%clk 0:01:18.6]} 25. Qb7 {[%clk
0:00:34]} 25... Rxc6 {[%clk 0:01:17.1]} 26. Qxc7 {[%clk 0:00:30.2]} 26... Rxc7
{[%clk 0:01:16.5]} 27. g3 {[%clk 0:00:27.9]} 27... Rc2 {[%clk 0:01:12.2]} 28.
R1f2 {[%clk 0:00:28]} 28... Rfc8 {[%clk 0:01:12.3]} 29. Rxf7 {[%clk 0:00:25.7]}
29... Rxf2 {[%clk 0:01:02.6]} 30. Rxf2 {[%clk 0:00:26.6]} 30... Rc3 {[%clk
0:01:01.2]} 31. Re2 {[%clk 0:00:25.4]} 31... Rc1+ {[%clk 0:01:00.6]} 32. Kf2
{[%clk 0:00:25.1]} 32... Kf7 {[%clk 0:00:57.9]} 33. Rd2 {[%clk 0:00:22.3]} 33...
Ke7 {[%clk 0:00:55.7]} 34. Kf3 {[%clk 0:00:22.3]} 34... h5 {[%clk 0:00:51.5]}
35. Kf4 {[%clk 0:00:20.2]} 35... Kf6 {[%clk 0:00:50.4]} 36. Kf3 {[%clk
0:00:18.2]} 36... Ke5 {[%clk 0:00:48.6]} 37. h3 {[%clk 0:00:16.9]} 37... g5
{[%clk 0:00:43.2]} 38. g4 {[%clk 0:00:15.1]} 38... h4 {[%clk 0:00:43.2]} 39. Rh2
{[%clk 0:00:11.9]} 39... Rf1+ {[%clk 0:00:39.5]} 40. Ke2 {[%clk 0:00:12]} 40...
Rg1 {[%clk 0:00:37]} 41. Kd3 {[%clk 0:00:10.7]} 41... Rd1+ {[%clk 0:00:28.2]}
42. Ke2 {[%clk 0:00:09.7]} 42... Rg1 {[%clk 0:00:19.5]} 43. Kd3 {[%clk
0:00:10.1]} 43... a5 {[%clk 0:00:18.4]} 44. a3 {[%clk 0:00:08]} 44... Rb1 {[%clk
0:00:16]} 45. Kc2 {[%clk 0:00:06.7]} 45... Re1 {[%clk 0:00:14.1]} 46. Kd3 {[%clk
0:00:06.3]} 46... Ra1 {[%clk 0:00:10.2]} 47. a4 {[%clk 0:00:06.5]} 47... Rd1+
{[%clk 0:00:06]} 48. Kc2 {[%clk 0:00:06.2]} 48... Rg1 {[%clk 0:00:04.7]} 49. Kd3
{[%clk 0:00:06.5]} 49... Rg3 {[%clk 0:00:04.4]} 50. Kd2 {[%clk 0:00:04.7]} 50...
Kxe4 {[%clk 0:00:02.7]} 51. Kc3 {[%clk 0:00:04.1]} 51... Rxe3+ {[%clk
0:00:02.6]} 52. Kc4 {[%clk 0:00:04.6]} 52... d5+ {[%clk 0:00:03]} 53. Kc5 {[%clk
0:00:04.5]} 53... d4 {[%clk 0:00:03.1]} 54. Kd6 {[%clk 0:00:05.4]} 54... d3
{[%clk 0:00:02.7]} 55. Kxe6 {[%clk 0:00:05.9]} 55... Re2 {[%clk 0:00:03]} 56.
Rh1 {[%clk 0:00:06.6]} 56... d2 {[%clk 0:00:03]} 57. Kf6 {[%clk 0:00:05.4]}
57... Re1 {[%clk 0:00:02.5]} 58. Rxe1+ {[%clk 0:00:06]} 58... dxe1=Q {[%clk
0:00:02.9]} 59. Kxg5 {[%clk 0:00:06.9]} 59... Qg3 {[%clk 0:00:02.9]} 60. Kh5
{[%clk 0:00:07.8]} 60... Qxh3 {[%clk 0:00:02.9]} 61. g5 {[%clk 0:00:08.7]} 61...
Qg3 {[%clk 0:00:03.2]} 62. g6 {[%clk 0:00:09.6]} 62... h3 {[%clk 0:00:03.4]} 63.
g7 {[%clk 0:00:10]} 63... h2 {[%clk 0:00:04.1]} 64. b4 {[%clk 0:00:10.9]} 64...
h1=Q# {[%clk 0:00:04.5]} 0-1

[Event "*** Titled Tuesday Blitz"]
[Site "Chess.com"]
[Date "2020.10.27"]
[Round "10"]
[White "RobertoJBM"]
[Black "Legendinunknown"]
[Result "0-1"]
[WhiteElo "2783"]
[BlackElo "2678"]
[TimeControl "180+1"]
[EndTime "11:58:05 PDT"]
[Termination "Legendinunknown won by resignation"]

1. d4 {[%clk 0:03:00.9]} 1... d5 {[%clk 0:02:58.2]} 2. c4 {[%clk 0:03:01.3]}
2... c6 {[%clk 0:02:57.8]} 3. Nf3 {[%clk 0:03:00.3]} 3... Nf6 {[%clk 0:02:57.9]}
4. Qc2 {[%clk 0:02:56.9]} 4... g6 {[%clk 0:02:56.8]} 5. Bf4 {[%clk 0:02:56.2]}
5... Bg7 {[%clk 0:02:55.6]} 6. e3 {[%clk 0:02:56.4]} 6... O-O {[%clk 0:02:55]}
7. Nc3 {[%clk 0:02:56.5]} 7... Bf5 {[%clk 0:02:54]} 8. Qb3 {[%clk 0:02:56.3]}
8... Qb6 {[%clk 0:02:50.6]} 9. Qxb6 {[%clk 0:02:50.9]} 9... axb6 {[%clk
0:02:50.2]} 10. cxd5 {[%clk 0:02:51.8]} 10... cxd5 {[%clk 0:02:49.2]} 11. Nh4
{[%clk 0:02:44.1]} 11... Bd7 {[%clk 0:02:47.6]} 12. Bb5 {[%clk 0:02:39]} 12...
Nc6 {[%clk 0:02:44.5]} 13. Nf3 {[%clk 0:02:36.3]} 13... Ra5 {[%clk 0:02:42.2]}
14. O-O {[%clk 0:02:33.1]} 14... Nb4 {[%clk 0:02:37.5]} 15. Bxd7 {[%clk
0:02:28]} 15... Nxd7 {[%clk 0:02:35.9]} 16. Rfd1 {[%clk 0:02:26.4]} 16... Rfa8
{[%clk 0:02:29.7]} 17. a3 {[%clk 0:02:26.1]} 17... Nc6 {[%clk 0:02:27.3]} 18.
Rac1 {[%clk 0:02:24.2]} 18... e6 {[%clk 0:02:25.5]} 19. Bd6 {[%clk 0:02:19.8]}
19... Bf8 {[%clk 0:02:15.8]} 20. Bxf8 {[%clk 0:02:18.5]} 20... Kxf8 {[%clk
0:02:16.7]} 21. Kf1 {[%clk 0:02:19.4]} 21... b5 {[%clk 0:02:15.2]} 22. Na2
{[%clk 0:01:36.9]} 22... Ke7 {[%clk 0:02:00.9]} 23. Ne1 {[%clk 0:01:36.5]} 23...
b4 {[%clk 0:01:51]} 24. Nxb4 {[%clk 0:01:35.8]} 24... Nxb4 {[%clk 0:01:51.2]}
25. axb4 {[%clk 0:01:36.7]} 25... Ra2 {[%clk 0:01:48.6]} 26. Nd3 {[%clk
0:01:36.6]} 26... Kd6 {[%clk 0:01:47.7]} 27. Rc2 {[%clk 0:01:31.7]} 27... Nb6
{[%clk 0:01:35.9]} 28. Rdc1 {[%clk 0:01:31.6]} 28... Nc4 {[%clk 0:01:33.9]} 29.
Ke2 {[%clk 0:01:19.7]} 29... f6 {[%clk 0:01:21.7]} 30. h4 {[%clk 0:01:17.2]}
30... e5 {[%clk 0:01:14.6]} 31. b3 {[%clk 0:01:14.3]} 31... Rxc2+ {[%clk
0:01:12.1]} 32. Rxc2 {[%clk 0:01:15.2]} 32... Na3 {[%clk 0:01:12.1]} 33. dxe5+
{[%clk 0:00:56.6]} 33... fxe5 {[%clk 0:01:10.9]} 34. Ra2 {[%clk 0:00:57.5]}
34... Ra7 {[%clk 0:01:02.7]} 35. Nc5 {[%clk 0:00:54]} 35... b6 {[%clk
0:00:56.6]} 36. Na4 {[%clk 0:00:49]} 36... Nb5 {[%clk 0:00:53.5]} 37. Rc2 {[%clk
0:00:47.7]} 37... Rb7 {[%clk 0:00:52.3]} 38. Kd3 {[%clk 0:00:44.6]} 38... e4+
{[%clk 0:00:44.7]} 39. Kd2 {[%clk 0:00:44.5]} 39... h6 {[%clk 0:00:41.3]} 40. f3
{[%clk 0:00:41.8]} 40... exf3 {[%clk 0:00:40.2]} 41. gxf3 {[%clk 0:00:42.7]}
41... d4 {[%clk 0:00:39.6]} 42. Rc4 {[%clk 0:00:28]} 42... dxe3+ {[%clk
0:00:34.3]} 43. Kxe3 {[%clk 0:00:28.9]} 43... g5 {[%clk 0:00:32.9]} 44. hxg5
{[%clk 0:00:28.9]} 44... hxg5 {[%clk 0:00:33.8]} 45. Rg4 {[%clk 0:00:29.3]}
45... Re7+ {[%clk 0:00:28.7]} 46. Kf2 {[%clk 0:00:27.7]} 46... Kc7 {[%clk
0:00:22.7]} 47. Rxg5 {[%clk 0:00:27.7]} 47... Nd4 {[%clk 0:00:22.2]} 48. Nc3
{[%clk 0:00:27.1]} 48... Kb7 {[%clk 0:00:19.1]} 49. Nd5 {[%clk 0:00:23.2]} 49...
Re2+ {[%clk 0:00:18.1]} 50. Kg3 {[%clk 0:00:23.2]} 50... b5 {[%clk 0:00:18.3]}
51. Rg6 {[%clk 0:00:22.6]} 51... Rd2 {[%clk 0:00:15.6]} 52. Nc3 {[%clk
0:00:19.3]} 52... Rd3 {[%clk 0:00:15.1]} 53. Ne4 {[%clk 0:00:17.9]} 53... Rxf3+
{[%clk 0:00:14.3]} 54. Kg4 {[%clk 0:00:18.4]} 54... Re3 {[%clk 0:00:13.7]} 55.
Kf4 {[%clk 0:00:17.5]} 55... Re1 {[%clk 0:00:11.4]} 56. Nc5+ {[%clk 0:00:17.1]}
56... Kc7 {[%clk 0:00:11.5]} 57. Rd6 {[%clk 0:00:17.8]} 57... Kxd6 {[%clk
0:00:11.1]} 58. Nd3 {[%clk 0:00:17.5]} 58... Rb1 {[%clk 0:00:10.5]} 59. Ke4
{[%clk 0:00:16.9]} 59... Nxb3 {[%clk 0:00:10.2]} 60. Nf4 {[%clk 0:00:17]} 60...
Nd2+ {[%clk 0:00:09.5]} 61. Kd3 {[%clk 0:00:17.3]} 61... Nc4 {[%clk 0:00:10.4]}
62. Ne2 {[%clk 0:00:17.2]} 62... Rxb4 {[%clk 0:00:10.3]} 63. Nd4 {[%clk
0:00:17.1]} 63... Kc5 {[%clk 0:00:09.8]} 64. Ne6+ {[%clk 0:00:16.7]} 64... Kb6
{[%clk 0:00:09.7]} 65. Nd4 {[%clk 0:00:17]} 65... Ra4 {[%clk 0:00:09.8]} 66. Kc3
{[%clk 0:00:17.1]} 66... Ra3+ {[%clk 0:00:10]} 67. Kb4 {[%clk 0:00:17.7]} 67...
Ra4+ {[%clk 0:00:10.5]} 68. Kc3 {[%clk 0:00:18]} 68... Nd6 {[%clk 0:00:10.2]}
69. Nb3 {[%clk 0:00:18.8]} 69... Rc4+ {[%clk 0:00:10.5]} 70. Kb2 {[%clk
0:00:19.7]} 70... b4 {[%clk 0:00:10.7]} 0-1

[Event "*** Titled Tuesday Blitz"]
[Site "Chess.com"]
[Date "2020.10.27"]
[Round "10"]
[White "PaulfromSPb"]
[Black "AnishOnYoutube"]
[Result "0-1"]
[WhiteElo "2722"]
[BlackElo "2959"]
[TimeControl "180+1"]
[EndTime "11:58:12 PDT"]
[Termination "AnishOnYoutube won by resignation"]

1. d4 {[%clk 0:02:55.3]} 1... Nf6 {[%clk 0:02:59.4]} 2. Bf4 {[%clk 0:02:49.2]}
2... c5 {[%clk 0:02:52.6]} 3. e3 {[%clk 0:02:48.3]} 3... e6 {[%clk 0:02:50.2]}
4. c3 {[%clk 0:02:46.8]} 4... Be7 {[%clk 0:02:47.6]} 5. Nd2 {[%clk 0:02:41.6]}
5... O-O {[%clk 0:02:46.4]} 6. h3 {[%clk 0:02:41.2]} 6... b6 {[%clk 0:02:45.5]}
7. Ngf3 {[%clk 0:02:40.7]} 7... cxd4 {[%clk 0:02:43]} 8. cxd4 {[%clk 0:02:39.5]}
8... Ba6 {[%clk 0:02:26.1]} 9. Be2 {[%clk 0:02:34.3]} 9... d6 {[%clk 0:02:24.4]}
10. O-O {[%clk 0:02:33.6]} 10... Qd7 {[%clk 0:02:24.3]} 11. Rc1 {[%clk
0:02:32.7]} 11... Bxe2 {[%clk 0:02:23.4]} 12. Qxe2 {[%clk 0:02:32.3]} 12... Rc8
{[%clk 0:02:23.2]} 13. Rxc8+ {[%clk 0:02:21.9]} 13... Qxc8 {[%clk 0:02:23.4]}
14. Nb3 {[%clk 0:02:22.8]} 14... Qb7 {[%clk 0:02:18.9]} 15. Rc1 {[%clk
0:02:22.2]} 15... Nbd7 {[%clk 0:02:18.9]} 16. Bg5 {[%clk 0:02:15.9]} 16... Rc8
{[%clk 0:02:15.5]} 17. Qd1 {[%clk 0:02:13.5]} 17... h6 {[%clk 0:02:12.6]} 18.
Bxf6 {[%clk 0:02:11.3]} 18... Nxf6 {[%clk 0:02:12.8]} 19. Rxc8+ {[%clk
0:02:10.5]} 19... Qxc8 {[%clk 0:02:12.7]} 20. Qc1 {[%clk 0:02:11]} 20... Qb7
{[%clk 0:02:11]} 21. Nbd2 {[%clk 0:02:09.3]} 21... d5 {[%clk 0:02:06.6]} 22. Ne5
{[%clk 0:02:07.2]} 22... Bd6 {[%clk 0:02:05.1]} 23. Nd3 {[%clk 0:02:04.7]} 23...
Qa6 {[%clk 0:01:56.1]} 24. Qb1 {[%clk 0:02:00.9]} 24... Ne4 {[%clk 0:01:55.3]}
25. Nf3 {[%clk 0:01:40.1]} 25... f6 {[%clk 0:01:55.5]} 26. a3 {[%clk 0:01:37.2]}
26... Qc4 {[%clk 0:01:54.9]} 27. Nfe1 {[%clk 0:01:31.1]} 27... Kf7 {[%clk
0:01:40.5]} 28. Qc2 {[%clk 0:01:30.3]} 28... Qxc2 {[%clk 0:01:36]} 29. Nxc2
{[%clk 0:01:29.9]} 29... Nd2 {[%clk 0:01:36.3]} 30. f3 {[%clk 0:01:21.2]} 30...
e5 {[%clk 0:01:34.8]} 31. a4 {[%clk 0:01:10]} 31... e4 {[%clk 0:01:30.1]} 32.
fxe4 {[%clk 0:01:09.3]} 32... dxe4 {[%clk 0:01:27]} 33. Nc1 {[%clk 0:01:08.8]}
33... Ke6 {[%clk 0:01:22.6]} 34. Kf2 {[%clk 0:01:08]} 34... Nc4 {[%clk
0:01:14.1]} 35. b3 {[%clk 0:01:05.9]} 35... Na5 {[%clk 0:01:08.3]} 36. Ke2
{[%clk 0:01:05.3]} 36... h5 {[%clk 0:01:06.2]} 37. Kd2 {[%clk 0:01:03]} 37... f5
{[%clk 0:01:06.3]} 38. Kc3 {[%clk 0:01:02.2]} 38... g5 {[%clk 0:01:05.7]} 39.
Ne2 {[%clk 0:00:58.5]} 39... f4 {[%clk 0:00:59.6]} 40. Ne1 {[%clk 0:00:48.5]}
40... a6 {[%clk 0:00:42.9]} 41. h4 {[%clk 0:00:47.1]} 41... fxe3 {[%clk
0:00:20.6]} 42. hxg5 {[%clk 0:00:42.8]} 42... Kf5 {[%clk 0:00:20]} 43. Nc2
{[%clk 0:00:41.6]} 43... Kxg5 {[%clk 0:00:20.3]} 44. Nxe3 {[%clk 0:00:41.1]}
44... b5 {[%clk 0:00:20]} 45. axb5 {[%clk 0:00:35.8]} 45... axb5 {[%clk
0:00:20.9]} 46. d5 {[%clk 0:00:35.7]} 46... Bc5 {[%clk 0:00:11.5]} 47. Nc2
{[%clk 0:00:28.1]} 47... Nb7 {[%clk 0:00:10.2]} 48. b4 {[%clk 0:00:27.3]} 48...
Bb6 {[%clk 0:00:09.8]} 49. Ned4 {[%clk 0:00:20.2]} 49... Nd6 {[%clk 0:00:09.6]}
50. Kd2 {[%clk 0:00:14.9]} 50... Kf4 {[%clk 0:00:06.6]} 51. Ke2 {[%clk
0:00:12.7]} 51... Ke5 {[%clk 0:00:06]} 52. Ne6 {[%clk 0:00:10.9]} 52... h4
{[%clk 0:00:05]} 53. Ng5 {[%clk 0:00:06.6]} 53... Kxd5 {[%clk 0:00:04.9]} 54.
Nh3 {[%clk 0:00:05.6]} 54... Nf5 {[%clk 0:00:04.9]} 55. Nf4+ {[%clk 0:00:05.6]}
55... Kc4 {[%clk 0:00:04.8]} 56. Ng6 {[%clk 0:00:04.8]} 56... Kc3 {[%clk
0:00:04.3]} 57. Kd1 {[%clk 0:00:05]} 57... e3 {[%clk 0:00:03.5]} 58. Nf4 {[%clk
0:00:03.1]} 58... Ng3 {[%clk 0:00:02.4]} 59. Ne1 {[%clk 0:00:03.3]} 59... Kxb4
{[%clk 0:00:02.4]} 60. Ned3+ {[%clk 0:00:03.3]} 60... Kc4 {[%clk 0:00:02.5]} 61.
Ne5+ {[%clk 0:00:03.9]} 61... Kd4 {[%clk 0:00:02.5]} 62. Nc6+ {[%clk 0:00:03.4]}
62... Ke4 {[%clk 0:00:02.9]} 63. Ne2 {[%clk 0:00:02.7]} 63... Nxe2 {[%clk
0:00:02.8]} 64. Kxe2 {[%clk 0:00:03.6]} 64... Bc5 {[%clk 0:00:03.5]} 65. Na5
{[%clk 0:00:03.6]} 65... b4 {[%clk 0:00:04.1]} 66. Nb3 {[%clk 0:00:04.5]} 66...
Bb6 {[%clk 0:00:04.7]} 67. Nc1 {[%clk 0:00:04.5]} 67... Kd4 {[%clk 0:00:04.9]}
68. Kd1 {[%clk 0:00:04.9]} 68... Kc4 {[%clk 0:00:05.2]} 69. Kc2 {[%clk
0:00:05.1]} 69... Bd4 {[%clk 0:00:05.3]} 70. Ne2 {[%clk 0:00:04.8]} 70... b3+
{[%clk 0:00:05.3]} 71. Kd1 {[%clk 0:00:05.1]} 71... Be5 {[%clk 0:00:05.9]} 72.
Kc1 {[%clk 0:00:02.6]} 72... Kd3 {[%clk 0:00:05.9]} 73. Ng1 {[%clk 0:00:02.7]}
73... e2 {[%clk 0:00:05.4]} 74. Nf3 {[%clk 0:00:03.6]} 74... Bc3 {[%clk
0:00:05.3]} 75. Kb1 {[%clk 0:00:01.6]} 75... Ke3 {[%clk 0:00:05.6]} 76. Ne1
{[%clk 0:00:02.5]} 76... Bxe1 {[%clk 0:00:05.5]} 0-1

[Event "*** Titled Tuesday Blitz"]
[Site "Chess.com"]
[Date "2020.10.27"]
[Round "11"]
[White "KacperPolOK"]
[Black "nubair1198"]
[Result "0-1"]
[WhiteElo "2435"]
[BlackElo "2802"]
[TimeControl "180+1"]
[EndTime "12:00:02 PDT"]
[Termination "nubair1198 won by resignation"]

1. e4 {[%clk 0:02:59.8]} 1... g6 {[%clk 0:02:59.4]} 2. d4 {[%clk 0:02:58.8]}
2... Bg7 {[%clk 0:02:59.9]} 3. Nc3 {[%clk 0:02:56.8]} 3... c6 {[%clk 0:03:00.1]}
4. Nf3 {[%clk 0:02:52.1]} 4... d6 {[%clk 0:03:00.2]} 5. h3 {[%clk 0:02:34.3]}
5... Nf6 {[%clk 0:03:00.6]} 6. Be3 {[%clk 0:02:33.1]} 6... O-O {[%clk 0:03:01]}
7. Qd2 {[%clk 0:02:33.1]} 7... Qa5 {[%clk 0:03:01.6]} 8. O-O-O {[%clk
0:02:31.8]} 8... b5 {[%clk 0:03:00.1]} 9. Kb1 {[%clk 0:02:30.1]} 9... b4 {[%clk
0:02:59.8]} 10. Ne2 {[%clk 0:02:27.2]} 10... Nxe4 {[%clk 0:03:00.1]} 11. Qd3
{[%clk 0:02:26.9]} 11... Bf5 {[%clk 0:02:59.9]} 12. Qb3 {[%clk 0:02:23.7]} 12...
Be6 {[%clk 0:02:58.6]} 0-1

[Event "*** Titled Tuesday Blitz"]
[Site "Chess.com"]
[Date "2020.10.27"]
[Round "11"]
[White "Deepweb2020"]
[Black "CakeinSpace2002"]
[Result "1-0"]
[WhiteElo "2252"]
[BlackElo "2341"]
[TimeControl "180+1"]
[EndTime "12:01:52 PDT"]
[Termination "Deepweb2020 won by resignation"]

1. d4 {[%clk 0:02:58.1]} 1... Nf6 {[%clk 0:02:59.6]} 2. c4 {[%clk 0:02:56.4]}
2... e6 {[%clk 0:02:59.6]} 3. g3 {[%clk 0:02:56.3]} 3... Bb4+ {[%clk 0:02:49.3]}
4. Bd2 {[%clk 0:02:54.5]} 4... c5 {[%clk 0:02:45.7]} 5. Bg2 {[%clk 0:02:53]}
5... O-O {[%clk 0:02:45]} 6. Nf3 {[%clk 0:02:52.3]} 6... Bxd2+ {[%clk
0:02:44.2]} 7. Qxd2 {[%clk 0:02:50.7]} 7... d6 {[%clk 0:02:43.4]} 8. Nc3 {[%clk
0:02:50.4]} 8... Nc6 {[%clk 0:02:43.1]} 9. dxc5 {[%clk 0:02:47.2]} 9... dxc5
{[%clk 0:02:42.4]} 10. O-O-O {[%clk 0:02:41.8]} 10... Qa5 {[%clk 0:02:35]} 11.
Kb1 {[%clk 0:02:37.2]} 11... Qa6 {[%clk 0:02:25.7]} 12. Nb5 {[%clk 0:02:35]}
12... Bd7 {[%clk 0:02:23.2]} 13. Nc7 {[%clk 0:02:29.4]} 13... Qxc4 {[%clk
0:02:21.4]} 14. Nxa8 {[%clk 0:02:29.3]} 14... Rxa8 {[%clk 0:02:22.3]} 15. Qc2
{[%clk 0:02:25.8]} 15... Qa6 {[%clk 0:02:18.8]} 16. Qxc5 {[%clk 0:02:21.2]}
16... Rc8 {[%clk 0:01:59]} 17. Ne5 {[%clk 0:01:54]} 17... Nxe5 {[%clk
0:01:53.9]} 18. Qxc8+ {[%clk 0:01:50.1]} 18... Bxc8 {[%clk 0:01:53.9]} 19. Rd8+
{[%clk 0:01:49.4]} 1-0

[Event "*** Titled Tuesday Blitz"]
[Site "Chess.com"]
[Date "2020.10.27"]
[Round "11"]
[White "mr65"]
[Black "Mimsychess"]
[Result "1-0"]
[WhiteElo "2211"]
[BlackElo "2313"]
[TimeControl "180+1"]
[EndTime "12:01:52 PDT"]
[Termination "mr65 won by resignation"]

1. e4 {[%clk 0:03:00.9]} 1... c6 {[%clk 0:02:48.2]} 2. Nc3 {[%clk 0:02:59.7]}
2... d5 {[%clk 0:02:46]} 3. Nf3 {[%clk 0:02:59.6]} 3... dxe4 {[%clk 0:02:45.7]}
4. Nxe4 {[%clk 0:02:58.9]} 4... Nf6 {[%clk 0:02:45.4]} 5. Nxf6+ {[%clk
0:02:57.6]} 5... exf6 {[%clk 0:02:44.3]} 6. h3 {[%clk 0:02:55.1]} 6... Bd6
{[%clk 0:02:38.4]} 7. d4 {[%clk 0:02:54.6]} 7... O-O {[%clk 0:02:38.3]} 8. Be2
{[%clk 0:02:54.1]} 8... Re8 {[%clk 0:02:38.5]} 9. O-O {[%clk 0:02:53.9]} 9...
Nd7 {[%clk 0:02:38.7]} 10. c4 {[%clk 0:02:51.1]} 10... Qc7 {[%clk 0:02:37.2]}
11. Bd3 {[%clk 0:02:44.4]} 11... Nf8 {[%clk 0:02:31.3]} 12. d5 {[%clk 0:02:40]}
12... Ng6 {[%clk 0:02:22.7]} 13. Qc2 {[%clk 0:02:34.4]} 13... cxd5 {[%clk
0:02:12.5]} 14. cxd5 {[%clk 0:02:33.4]} 14... Qxc2 {[%clk 0:02:12.4]} 15. Bxc2
{[%clk 0:02:33.1]} 15... Bd7 {[%clk 0:02:08.6]} 16. Be3 {[%clk 0:02:30.5]} 16...
Rac8 {[%clk 0:02:05.9]} 17. Rac1 {[%clk 0:02:27.5]} 17... Bc5 {[%clk 0:01:54.1]}
18. Bxc5 {[%clk 0:02:21.2]} 18... Rxc5 {[%clk 0:01:53.9]} 19. Bxg6 {[%clk
0:02:20.8]} 19... Rxc1 {[%clk 0:01:53.4]} 20. Bxh7+ {[%clk 0:02:18.9]} 20...
Kxh7 {[%clk 0:01:52.9]} 21. Rxc1 {[%clk 0:02:18.3]} 21... Bb5 {[%clk 0:01:45.4]}
22. Rc7 {[%clk 0:02:10]} 22... Rd8 {[%clk 0:01:42.5]} 23. Rxb7 {[%clk
0:02:07.8]} 23... Rd7 {[%clk 0:01:42.8]} 24. Rxb5 {[%clk 0:02:06.4]} 1-0

[Event "*** Titled Tuesday Blitz"]
[Site "Chess.com"]
[Date "2020.10.27"]
[Round "11"]
[White "Akhayan"]
[Black "natelleka"]
[Result "0-1"]
[WhiteElo "2252"]
[BlackElo "2203"]
[TimeControl "180+1"]
[EndTime "12:02:06 PDT"]
[Termination "natelleka won by resignation"]

1. d4 {[%clk 0:03:00.6]} 1... d5 {[%clk 0:02:59.5]} 2. Nf3 {[%clk 0:02:55.6]}
2... c5 {[%clk 0:02:59.6]} 3. g3 {[%clk 0:02:55.1]} 3... Nf6 {[%clk 0:02:57.1]}
4. Bg2 {[%clk 0:02:54.7]} 4... Nc6 {[%clk 0:02:57.5]} 5. O-O {[%clk 0:02:54]}
5... g6 {[%clk 0:02:55.3]} 6. c4 {[%clk 0:02:53.8]} 6... Bg7 {[%clk 0:02:49.8]}
7. dxc5 {[%clk 0:02:52.5]} 7... O-O {[%clk 0:02:45.2]} 8. cxd5 {[%clk
0:02:49.1]} 8... Nxd5 {[%clk 0:02:44.1]} 9. Na3 {[%clk 0:02:44.3]} 9... Ndb4
{[%clk 0:02:18]} 10. Nc4 {[%clk 0:02:40.3]} 10... Be6 {[%clk 0:02:07.4]} 11. Ne3
{[%clk 0:02:30.7]} 11... Qxd1 {[%clk 0:01:49.4]} 12. Nxd1 {[%clk 0:02:27.7]}
12... Nc2 {[%clk 0:01:44.5]} 13. Be3 {[%clk 0:02:11.4]} 13... Nxa1 {[%clk
0:01:41.9]} 14. Nc3 {[%clk 0:02:08.8]} 14... Nc2 {[%clk 0:01:33.7]} 15. Bg5
{[%clk 0:02:06.9]} 15... h6 {[%clk 0:01:28.4]} 16. Bf4 {[%clk 0:02:04.8]} 16...
g5 {[%clk 0:01:27]} 17. Bd2 {[%clk 0:02:04]} 17... N2b4 {[%clk 0:01:22.1]} 18.
Rc1 {[%clk 0:02:00.9]} 18... Rad8 {[%clk 0:01:20]} 0-1

[Event "*** Titled Tuesday Blitz"]
[Site "Chess.com"]
[Date "2020.10.27"]
[Round "11"]
[White "Chernobay_Artem"]
[Black "Sergey85Rodchenkov"]
[Result "1-0"]
[WhiteElo "2627"]
[BlackElo "2470"]
[TimeControl "180+1"]
[EndTime "12:02:13 PDT"]
[Termination "Chernobay_Artem won by resignation"]

1. d4 {[%clk 0:03:00.9]} 1... Nf6 {[%clk 0:02:59.3]} 2. c4 {[%clk 0:03:00.2]}
2... e6 {[%clk 0:02:58.9]} 3. Nf3 {[%clk 0:03:00.8]} 3... b6 {[%clk 0:02:58.9]}
4. g3 {[%clk 0:03:00.9]} 4... Bb7 {[%clk 0:02:59.4]} 5. Bg2 {[%clk 0:03:01.5]}
5... Be7 {[%clk 0:02:59.1]} 6. O-O {[%clk 0:03:02.2]} 6... O-O {[%clk
0:02:59.6]} 7. d5 {[%clk 0:03:02.8]} 7... exd5 {[%clk 0:02:58.6]} 8. Nh4 {[%clk
0:03:03.2]} 8... c6 {[%clk 0:02:59.1]} 9. cxd5 {[%clk 0:03:03.1]} 9... cxd5
{[%clk 0:02:59.2]} 10. Nc3 {[%clk 0:02:58.8]} 10... Na6 {[%clk 0:02:59.6]} 11.
Nf5 {[%clk 0:02:56.3]} 11... Nc5 {[%clk 0:02:57.6]} 12. Nxd5 {[%clk 0:02:46.2]}
12... Nxd5 {[%clk 0:02:55.9]} 13. Bxd5 {[%clk 0:02:47.1]} 13... Bxd5 {[%clk
0:02:56.4]} 14. Qxd5 {[%clk 0:02:47.3]} 14... Bf6 {[%clk 0:02:56.9]} 15. Rb1
{[%clk 0:02:39.6]} 15... a5 {[%clk 0:02:56]} 16. Bf4 {[%clk 0:02:36.1]} 16...
Re8 {[%clk 0:02:55]} 17. Nd6 {[%clk 0:02:26.3]} 17... Re6 {[%clk 0:02:54.6]} 18.
e4 {[%clk 0:02:25.6]} 18... a4 {[%clk 0:02:49.5]} 19. e5 {[%clk 0:02:22.6]}
19... Be7 {[%clk 0:02:49]} 20. Nf5 {[%clk 0:02:15.2]} 20... Bf8 {[%clk
0:02:47.5]} 21. Rfd1 {[%clk 0:02:10.3]} 21... Ra5 {[%clk 0:02:45.4]} 22. b4
{[%clk 0:01:59.3]} 22... axb3 {[%clk 0:02:44.3]} 23. axb3 {[%clk 0:01:58.6]}
23... Qa8 {[%clk 0:02:17.1]} 24. b4 {[%clk 0:01:53.6]} 1-0